Workbook

Sheet NSU
B1: Oona Majoinen | E1: 4.5.2003 Joensuu
B2: SUPERPESIS | E2: Runkosarja | I2: Kärkilyönnit (KL), pesänvälit | P2: Ylempi loppusarja | U2: Alempi loppusarja | AB2: Arvo-ottelut ja mitalit
B3: Vuosi | C3: Sija | D3: Seura | E3: OTT | F3: KUN | G3: LÖI | H3: TOI | I3: KL | J3: 0 > 1 | K3: 1 > 2 | L3: 2 > 3 | M3: 3 > k | N3: KL-% | P3: OTT | Q3: KUN | R3: LÖI | S3: TOI | T3: KL | U3: OTT | V3: KUN | W3: LÖI | X3: TOI | Y3: KL | Z3: IL | AA3: LL | AB3: Halli | AC3: K | AD3: H | AE3: P
B4: 2018 | D4: JoMa 2 | F4: suomensarja
B5: 2019 | D5: JoMa 2 | F5: suomensarja
B6: 2019 | D6: JoMa | F6: ykköspesis
B7: 2020 | D7: PuPe | F7: ykköspesis
B8: 2020 | C8: 9. | D8: JoMa | E8: 2 | F8: 0 | G8: 0 | H8: 0 | I8: 3 | J8: 3 | K8: 0 | L8: 0 | M8: 0 | N8: 30.0 % | O8: 10
B9: 2021 | D9: PuPe | F9: ykköspesis
B10: 2022 | C10: 7. | D10: Pesä Ysit | F10: ykköspesis
B11: 2023 | C11: 6. | D11: JoMa | E11: 22 | F11: 0 | G11: 1 | H11: 4 | I11: 18 | J11: 7 | K11: 6 | L11: 4 | M11: 1 | N11: 46.2 % | O11: 39 | P11: 5 | Q11: 0 | R11: 1 | S11: 0 | T11: 2
B12: 2024 | C12: 6. | D12: JoMa | E12: 11 | F12: 0 | G12: 0 | H12: 2 | I12: 13 | J12: 1 | K12: 7 | L12: 5 | M12: 0 | N12: 37.1 % | O12: 35
B13: Yhteensä | E13: =SUM(E4:E12) -> 35 | F13: 0 | G13: 1 | H13: 6 | I13: 34 | J13: 11 | K13: 13 | L13: 9 | M13: 1 | N13: =PRODUCT(I13/O13) -> 40.5 % | O13: =SUM(O1:O12) -> 84 | P13: =SUM(P4:P12) -> 5 | Q13: 0 | R13: 1 | S13: 0 | T13: 2 | U13: 0 | V13: 0 | W13: 0 | X13: 0 | Y13: 0 | Z13: 0 | AA13: 0 | AB13: 0 | AC13: 0 | AD13: 0 | AE13: 0
B14: Pesispörssi | D14: =SUM(F13:H13)+((I13-F13-G13)/3)+(E13/3)+(Z13*25)+(AA13*25)+(AB13*10)+(AC13*25)+(AD13*20)+(AE13*15) -> 29.7
B16: URA SUPERISSA | E16: OTT | F16: KUN | G16: LÖI | H16: TOI | I16: KL | K16: ka/L | L16: ka/T | M16: ka/KL | N16: KL - % | P16: ENSIMMÄISET
B17: Runkosarja | E17: =PRODUCT(E13) -> 35 | F17: =PRODUCT(F13) -> 0 | G17: =PRODUCT(G13) -> 1 | H17: =PRODUCT(H13) -> 6 | I17: =PRODUCT(I13) -> 34 | K17: =PRODUCT((F17+G17)/E17) -> 0.03 | L17: =PRODUCT(H17/E17) -> 0.17 | M17: =PRODUCT(I17/E17) -> 0.97 | N17: =PRODUCT(N13) -> 40.5 % | O17: =PRODUCT(O13) -> 84 | P17: Ottelu | R17: 11.07. 2020 JoMa - Manse PP 0-2 (0-4, 1-4) | AA17: 1. ottelu | AE17: 17 v 2 kk 7 pv
B18: Ylempi loppusarja | E18: =PRODUCT(P13) -> 5 | F18: =PRODUCT(Q13) -> 0 | G18: 1 | H18: 0 | I18: 2 | K18: =PRODUCT((F18+G18)/E18) -> 0.20 | L18: =PRODUCT(H18/E18) -> 0.00 | M18: =PRODUCT(I18/E18) -> 0.40 | N18: =PRODUCT(I18/O18) -> 50.0 % | O18: 4 | P18: Lyöty | R18: 20.05. 2023 JoMa- HP 2-0 (6-1, 5-0) | AA18: 6. ottelu | AE18: 20 v 0 kk 16 pv
B19: Alempi loppusarja | P19: Tuotu | R19: 13.05. 2023 Pesäkarhut - JoMa 2-0 (1-0, 7-3) | AA19: 4. ottelu | AE19: 20 v 0 kk 9 pv
B20: KAIKKI | E20: =SUM(E17:E19) -> 40 | F20: =SUM(F17:F19) -> 0 | G20: =SUM(G17:G19) -> 2 | H20: =SUM(H17:H19) -> 6 | I20: =SUM(I17:I19) -> 36 | K20: =PRODUCT((F20+G20)/E20) -> 0.05 | L20: =PRODUCT(H20/E20) -> 0.15 | M20: =PRODUCT(I20/E20) -> 0.90 | N20: =PRODUCT(I20/O20) -> 40.9 % | O20: =SUM(O17:O19) -> 88 | P20: Kunnari
B22: Seurat | D22: JoMa = Joensuun Maila (1957), kasvattajaseura
D23: PuPe = Puijon Pesis (2009)
D24: Pesä Ysit (1976)

Sheet Arvo-ottelut
B1: ITÄ - LÄNSI - KORTTI
B2: Oona Majoinen | C2: 4.5.2003 Joensuu
B3: B-TYTÖT | C3: Itä - Länsi, tulos | D3: Joukkue | E3: Seura | G3: V | H3: T | I3: H | J3: Up. | K3: Lj. | L3: Palk. | M3: O | N3: K | O3: L | P3: T | Q3: KL | R3: 1 | S3: 2 | T3: 3 | U3: k | V3: KL-% | W3: Pelinjohtaja | X3: Yleisöä
B4: 10.07. 2022 Tampere | C4: 2-1 (0-3, 8-7, 1-1, 2-1) | D4: Itä | E4: JoMa | G4: 1 | K4: jok | M4: 1 | P4: 1 | Q4: 5/8 | R4: 1/1 | S4: 2/2 | T4: 2/4 | U4: 0/1 | V4: =PRODUCT(5/8) -> 62.5 % | W4: Manu Vartia | X4: 856
